Cogmind - Beta 16 @@@ ROGUE MODE // 2025.12.02 @ 17:00:09 Player: Torako Result: Destroyed by S-27 Virus with Autogun Performance ------------- Evolutions (5) 2500 Regions Visited (6) 1200 Robots Destroyed (52) 260 Value Destroyed (1423) 1423 Prototype IDs (12) 240 Alien Tech Used (0) 0 Bonus (265) 265 TOTAL SCORE: 5888 Bonus ------- Follower Combat Kills 65 Entered Garrisons 200 Cogmind --------- Core Integrity 0/1000 Matter 296/300 Energy 100/100 System Corruption 3% Temperature Cool (0) Movement Core (50) Location -5/Garrison Parts ------- > --- POWER (2) -------- (None) > --- PROPULSION (4) --- (None) > --- UTILITY (7) ------ Improved Signal Interpreter > --- WEAPON (4) ------- (None) > --- INVENTORY (5) ---- Large Storage Unit Improved Melee Analysis Suite Peak State ------------ > --- POWER ------------ Deuterium-Ion Engine > --- PROPULSION ------- Thunder-Compact Exoskeleton > --- UTILITY ---------- Armored Scrap Engine Advanced Heat Sink Large Storage Unit Improved Sensor Array Improved Signal Interpreter Makeshift Salvage Targeting Computer > --- WEAPON ----------- Hvy. Ballistic Gauss Construct/C KE Construct/G > --- INVENTORY -------- Power Amplifier Improved Heat Sink Improved Coolant Injector Makeshift Microdissipator Network Tesla Rifle Missile Launcher [Rating: 68] Favorites ----------- Power Ion Engine Engine Ion Engine Propulsion Light Treads Treads Light Treads Leg Constructs Wheel Subdweller Monowheel Flight Unit VTOL Module Utility Shield Generator Device Shield Generator Storage High-capacity Storage Unit Processor Makeshift Salvage Targeting Computer Weapon Improved EM Shotgun Energy Gun Improved EM Shotgun Energy Cannon Constructs Ballistic Gun Constructs Launcher Missile Launcher Build | -11 -10 -10 -10 -7 -5 -5 ------- Run | Yrd Mat Min Sub Rec Fac Gar Slots Evolved 10 | . . . . . 10 . Power 1 | . . . . . 1 . Propulsion 2 | . . . . . 2 . Utility 5 | . . . . . 5 . Weapon 2 | . . . . . 2 . Parts Attached 38 | 6 7 . 3 5 17 . Power 4 | 1 1 . . 1 1 . Engine 4 | 1 1 . . 1 1 . Core . | . . . . . . . Reactor . | . . . . . . . Propulsion 6 | 2 . . 2 1 1 . Treads 3 | 2 . . . 1 . . Leg 1 | . . . 1 . . . Wheel 1 | . . . 1 . . . Hover . | . . . . . . . Flight 1 | . . . . . 1 . Utility 19 | 1 4 . . 2 12 . Device 11 | . 3 . . 1 7 . Storage 3 | 1 1 . . . 1 . Processor 5 | . . . . 1 4 . Hackware . | . . . . . . . Protection . | . . . . . . . Artifact . | . . . . . . . Weapon 9 | 2 2 . 1 1 3 . Energy Gun 7 | 2 2 . 1 . 2 . Energy Cannon . | . . . . . . . Ballistic Gun 1 | . . . . 1 . . Ballistic Cannon . | . . . . . . . Launcher 1 | . . . . . 1 . Special Weapon . | . . . . . . . Impact Weapon . | . . . . . . . Slashing Weapon . | . . . . . . . Piercing Weapon . | . . . . . . . Special Melee Weapon . | . . . . . . . Unidentified Prototypes 3 | . 1 . . 1 1 . Parts Lost 30 | . . . 3 5 21 1 Power 3 | . . . . 1 2 . Propulsion 8 | . . . 2 2 4 . Utility 10 | . . . . . 9 1 Weapon 9 | . . . 1 2 6 . Highest Loss Streak 12 | . . . 1 4 12 1 To Critical Strikes . | . . . . . . . Average Backups 6 | 2 7 8 12 9 2 2 Power . | . 1 1 1 . . . Propulsion 1 | 1 2 2 4 2 . . Utility 2 | . 2 3 4 3 1 2 Weapon 1 | . 1 1 . 2 1 . Tool/Special . | . . . . . . . Unused Backups 15 | . 1 . . 12 2 . Power 1 | . . . . 1 . . Propulsion 6 | . . . . 5 1 . Utility 4 | . . . . 4 . . Weapon 3 | . 1 . . 1 1 . Tool/Special 1 | . . . . 1 . . Average Slot Usage (%) 76 | . 98 100 99 73 48 9 Engine 10 | . 14 14 14 14 2 . Treads 11 | . 28 28 19 . . . Leg 4 | . . . 2 14 2 . Wheel 2 | . . . 5 5 1 . Device 13 | . 12 14 14 10 16 3 Storage 8 | . 14 14 14 5 3 . Processor 3 | . . . . 2 9 5 Energy Gun 15 | . 28 28 28 9 1 . Ballistic Gun 2 | . . . . 9 . . Ballistic Cannon 1 | . . . . . 3 . Peak Build Rating 68 | 6 13 13 15 27 68 7 Average Rating 24 | 4 11 13 13 22 47 6 On Entrance 11 | . 6 13 13 15 27 7 Avg Prop Armor Cover (%) 9 | . . . 10 7 12 . Naked Turns . | . . . . . . . Heaviest Build 53 | 12 53 53 53 53 46 1 Greatest Support 40 | 40 40 40 40 23 33 3 Greatest Overweight (x) 3 | . 1 1 2 2 3 . Average Overweight (x) . | . . 1 1 . 1 . Largest Inventory Capacity 20 | 8 20 20 20 20 15 5 Average Capacity 13 | 7 12 20 20 10 12 5 Most Carried 20 | 4 8 8 15 20 6 2 Average Carried 6 | 2 7 8 12 9 2 2 Final Capacity 20 | 8 20 20 20 5 5 5 Final Carried 15 | 4 8 8 15 5 2 2 Scrap Engine Consumption 59 | . . . . 30 29 . Constructs Created 6 | . . . . 1 5 . Constructs Modified 12 | . . . . . 12 . Class Distribution -------------------- 79% | Mutant 20% | Construct Dominant Class ---------------- Mutant | -10/Materials Mutant | -10/Mines Mutant | -10/Subcaves Construct | -7/Recycling Mutant | -5/Factory Mutant | -5/Garrison Resources | -11 -10 -10 -10 -7 -5 -5 ----------- Run | Yrd Mat Min Sub Rec Fac Gar Matter Collected 857 | 260 260 . 25 66 246 . Remotely . | . . . . . . . Salvage Created 2044 | 124 501 . 317 235 867 . Parts 123 | 10 31 . 22 19 41 . Haulers Intercepted 1 | . 1 . . . . . Recyclers Shooed 1 | . . . . . 1 . Parts Field Recycled . | . . . . . . . Retrieved Matter . | . . . . . . . Parts Self-Destructed 11 | . . . 11 . . . Prevented 2 | . . . 2 . . . Parts Restored . | . . . . . . . Kills | -11 -10 -10 -10 -7 -5 -5 ------- Run | Yrd Mat Min Sub Rec Fac Gar Combat Hostiles Destroyed 40 | . 15 . 8 3 14 . Guns 29 | . 11 . 6 3 9 . Cannons 5 | . . . . . 5 . AOE 4 | . 3 . 1 . . . Classes Destroyed 13 | 2 4 . 2 2 3 . Worker 2 | . . . . . 2 . Tunneler 3 | 2 . . . . 1 . Hauler 1 | . 1 . . . . . Recycler 3 | 1 . . . . 2 . Turret 2 | . . . 2 . . . Watcher 1 | . 1 . . . . . Swarmer 19 | . 9 . 4 . 6 . Grunt 12 | . 6 . 1 . 5 . Hunter 1 | . . . . . 1 . Programmer 2 | . . . . . 2 . Subdweller 3 | . . . 3 . . . Scientist 2 | . . . . 2 . . Scrapper 3 | . . . . 3 . . Best Kill Streak 5 | 3 4 . 5 4 5 . Combat Bots Only 5 | . 4 . 4 3 5 . Max Kills in Single Turn 3 | 1 3 . 1 1 2 . Gunslinging . | . . . . . . . Exploded 3 | . 3 . 1 . . . Melee . | . . . . . . . Uniques/NPCs Destroyed . | . . . . . . . Combat | -11 -10 -10 -10 -7 -5 -5 -------- Run | Yrd Mat Min Sub Rec Fac Gar Hostile Shots Fired 397 | . 29 . 66 19 268 15 Missed 115 | . 8 . 26 3 71 7 Hits 282 | . 21 . 40 16 197 8 Melee 4 | . . . . . 4 . Projectile 278 | . 21 . 40 16 193 8 AOE 1 | . . . . . . 1 Critical Strikes 10 | . . . . 2 8 . Damage Taken 4434 | . 195 . 468 412 3205 154 Core 1239 | . 22 . 74 136 900 107 Absorbed by Shields 195 | . 75 . 120 . . . Regen/Repaired (Parts) 161 | . . . . 100 61 . Core Remaining (%) 53 | 100 . . . 7 . . Volleys Fired 141 | 9 25 . 28 19 60 . Largest 2 | 2 2 . 2 2 2 . Hottest 147 | 90 90 . 90 75 147 . Shots Fired 218 | 12 50 . 56 24 76 . Gun 178 | 12 50 . 56 24 36 . Cannon 39 | . . . . . 39 . Launcher 1 | . . . . . 1 . Special . | . . . . . . . Kinetic 56 | . . . . 19 37 . Thermal 41 | 9 1 . . . 31 . Explosive 1 | . . . . . 1 . Electromagnetic 120 | 3 49 . 56 5 7 . Robot Hit Streak 19 | 9 11 . 19 9 18 . Robot Miss Streak 7 | 2 7 . 3 4 3 . Penetration Max . | . . . . . . . Secondary Targets 3 | . 2 . 1 . . . Max Gunslinging Chain 1 | . 1 . 1 . . . Shots Hit Robots 168 | 9 38 . 48 19 54 . Core Hits 90 | 4 25 . 19 10 32 . Critical Kills 1 | . . . . . 1 . Critical Parts Destroyed 1 | . . . . 1 . . Critical Strikes 6 | 1 . . . 1 4 . Burn 1 | 1 . . . . . . Meltdown 1 | . . . . . 1 . Destroy 1 | . . . . 1 . . Blast 3 | . . . . . 3 . Melee Attacks . | . . . . . . . Impact . | . . . . . . . Slashing . | . . . . . . . Piercing . | . . . . . . . Sneak Attacks . | . . . . . . . Combat Hostiles . | . . . . . . . Follow-up Attacks . | . . . . . . . Damage Inflicted 3534 | 115 703 . 676 405 1635 . Guns 2167 | 115 581 . 552 398 521 . Cannons 872 | . . . . . 872 . Explosions 470 | . 122 . 124 . 224 . Melee . | . . . . . . . Ramming 25 | . . . . 7 18 . Kinetic 1140 | . . . . 330 810 . Thermal 834 | 76 134 . 124 . 500 . Explosive 224 | . . . . . 224 . Electromagnetic 1311 | 39 569 . 552 68 83 . Impact . | . . . . . . . Slashing . | . . . . . . . Piercing . | . . . . . . . Highest Corruption 3 | . . . . . 3 3 Average Corruption 2 | . . . . . 2 3 Corruption Purged . | . . . . . . . Corruption Blocked . | . . . . . . . Effects 11 | . . . . . 10 1 Message Errors 3 | . . . . . 3 . Matter Fused 2 | . . . . . 1 1 Energy Discharges 1 | . . . . . 1 . Parts Rejected 1 | . . . . . 1 . Data Loss (minor) 2 | . . . . . 2 . Alerts 1 | . . . . . 1 . Weapon Failures 1 | . . . . . 1 . Overload Shots . | . . . . . . . Overflow Damage 57 | . . . . . 57 . Projectiles 37 | . . . . . 37 . Explosions 20 | . . . . . 20 . Melee . | . . . . . . . Knockbacks 10 | . . . . . 10 . Impact . | . . . . . . . Kinetic 8 | . . . . . 8 . Secondary 2 | . . . . . 2 . Self-Inflicted Damage 146 | . 61 . 78 . 7 . Shots 4 | . 2 . 2 . . . Rammed 7 | . . . . . 7 . Targets Rammed 10 | . . . . 2 8 . Kicked 3 | . . . . 2 1 . Crushed . | . . . . . . . Highest Temperature 200 | 90 129 . 2 154 200 . Average Temperature 72 | 31 44 . 2 86 117 . Received Heat Transfer 741 | . 32 . 73 242 394 . Siege Activations . | . . . . . . . Martial Activations . | . . . . . . . Shielding Activations . | . . . . . . . Robots Disrupted . | . . . . . . . Combat Hostiles . | . . . . . . . Robots Corrupted 2 | . 1 . 1 . . . Combat Hostiles 2 | . 1 . 1 . . . Parts Fried 5 | . 2 . 3 . . . Impact Corruptions 1 | . . . . . 1 . Robots Melted 1 | . . . . . 1 . Combat Hostiles . | . . . . . . . Parts Melted 7 | 2 . . . 2 3 . Heat Transferred 1233 | 296 187 . 100 . 650 . Parts Sabotaged . | . . . . . . . Parts Stolen . | . . . . . . . Parts Stripped . | . . . . . . . Power Chain Reactions 5 | . 2 . 3 . . . Alert | -11 -10 -10 -10 -7 -5 -5 ------- Run | Yrd Mat Min Sub Rec Fac Gar Maximum Alert Level 1 | . 1 . . 1 1 1 Low Security (%) 90 | 100 77 100 . 95 97 37 Level 1 9 | . 22 . . 4 2 62 Level 2 . | . . . . . . . Level 3 . | . . . . . . . Level 4 . | . . . . . . . Level 5 . | . . . . . . . High Security . | . . . . . . . Max Security . | . . . . . . . Peak Influence 244 | 10 244 79 . 206 235 214 Initial 199 | . . 79 . 199 . 164 Average 63 | 1 78 60 . 71 46 193 Influence Increases 1703 | 15 425 . 521 63 629 50 Destroy 0b10 Robot/C 740 | . 300 . 160 . 280 . Destroy 0b10 Robot/NC 50 | 15 10 . . . 25 . Destroy Leader 124 | . 74 . 10 . 40 . Allied During Kill 6 | . . . 6 . . . Successful Hack 79 | . 5 . . 48 26 . Disable Machine 45 | . 15 . . 15 15 . Anti-Garrison Action 50 | . . . . . . 50 Destroy Structure 24 | . 6 . . . 18 . Lose Combat Pursuer 585 | . 15 . 345 . 225 . Influence Decreases 1499 | 15 221 165 145 478 394 81 Entered New Map 433 | . . 125 21 216 . 71 Time Decay 770 | 15 221 40 98 212 184 . Lost Part 280 | . . . 10 50 210 10 Lost Ally 16 | . . . 16 . . . Squads Dispatched 8 | . 3 . . . 5 . Investigation 1 | . . . . . 1 . Extermination 2 | . . . . . 2 . Reinforcement 5 | . 3 . . . 2 . Assault . | . . . . . . . Garrison . | . . . . . . . Intercept . | . . . . . . . Searches Triggered . | . . . . . . . Construction Impeded 1 | . . . . . 1 . Haulers Reinforced . | . . . . . . . Active Scanning Responses . | . . . . . . . Cargo Convoy Interrupts . | . . . . . . . Stealth | -11 -10 -10 -10 -7 -5 -5 --------- Run | Yrd Mat Min Sub Rec Fac Gar Distress Signals 2 | . . . . . 2 . Communications Jammed . | . . . . . . . Distress Signals . | . . . . . . . Times Spotted 91 | . 19 . 23 3 38 8 Peak Tracking Total 12 | . 4 . 4 3 12 9 Tactical Retreats 10 | . 1 . 4 . 5 . Traps | -11 -10 -10 -10 -7 -5 -5 ------- Run | Yrd Mat Min Sub Rec Fac Gar Traps Triggered 3 | . 3 . . . . . Indirectly . | . . . . . . . Trap Hack Attempts . | . . . . . . . Triggered . | . . . . . . . Disarmed . | . . . . . . . Reprogrammed . | . . . . . . . Reused . | . . . . . . . Traps Extracted . | . . . . . . . Installed . | . . . . . . . Triggered . | . . . . . . . Machines | -11 -10 -10 -10 -7 -5 -5 ---------- Run | Yrd Mat Min Sub Rec Fac Gar Machines Disabled 5 | . 1 . 2 1 1 . Max in Single Turn 1 | . 1 . 1 1 1 . Machines Repaired . | . . . . . . . Machines Dismantled . | . . . . . . . Machines Sabotaged . | . . . . . . . Overloaded Fab Kills . | . . . . . . . Hacking | -11 -10 -10 -10 -7 -5 -5 --------- Run | Yrd Mat Min Sub Rec Fac Gar Machines Accessed 20 | . 3 . . 11 5 1 Terminals 10 | . 2 . . 6 1 1 Fabricators . | . . . . . . . Repair Stations 2 | . 1 . . . 1 . Recycling Units 5 | . . . . 4 1 . Scanalyzers 1 | . . . . . 1 . Garrison Access 1 | . . . . . 1 . Total Hacks 51 | . 10 . . 30 9 2 Successful 29 | . 3 . . 21 5 . Failed 22 | . 7 . . 9 4 2 Catastrophic 5 | . . . . 2 1 2 Database Lockouts . | . . . . . . . Manual 19 | . 3 . . 13 3 . Terminals 28 | . 8 . . 16 2 2 Fabricators . | . . . . . . . Repair Stations 3 | . 2 . . . 1 . Recycling Units 9 | . . . . 7 2 . Scanalyzers 1 | . . . . . 1 . Garrison Access 3 | . . . . . 3 . Terminal Hacks 13 | . 2 . . 11 . . Record 5 | . . . . 5 . . Part Schematic 1 | . . . . 1 . . Prototype ID Bank 3 | . 2 . . 1 . . Terminal Index 2 | . . . . 2 . . Release Object 2 | . . . . 2 . . Fabricator Hacks . | . . . . . . . Repair Station Hacks . | . . . . . . . Recycling Unit Hacks 7 | . . . . 6 1 . Report Inventory 3 | . . . . 3 . . Retrieve Components 4 | . . . . 3 1 . Scanalyzer 1 | . . . . . 1 . Retrieve Study 1 | . . . . . 1 . Garrison Access Hacks 1 | . . . . . 1 . Unlock Access 1 | . . . . . 1 . Unauthorized Hacks 7 | . 1 . . 4 2 . Terminals 4 | . . . . 3 1 . Botnet 4 | . . . . 3 1 . Fabricators . | . . . . . . . Repair Stations 2 | . 1 . . . 1 . Mechanics 2 | . 1 . . . 1 . Recycling Units 1 | . . . . 1 . . Recyclers 1 | . . . . 1 . . Scanalyzers . | . . . . . . . Garrison Access . | . . . . . . . Data Cores Recovered . | . . . . . . . Used . | . . . . . . . Hacking Detections 14 | . 2 . . 8 3 1 Full Trace Events 2 | . . . . . 1 1 Feedback Events . | . . . . . . . Feedback Blocked . | . . . . . . . Robot Schematics Acquired . | . . . . . . . Robots Built . | . . . . . . . Authchips . | . . . . . . . Time . | . . . . . . . Total Robot Build Rating . | . . . . . . . Part Schematics Acquired 1 | . . . . 1 . . Parts Built . | . . . . . . . Authchips . | . . . . . . . Time . | . . . . . . . Total Part Build Rating . | . . . . . . . Part Studies Acquired 1 | . . . . . 1 . Parts Repaired . | . . . . . . . Time . | . . . . . . . Parts Recycled . | . . . . . . . Recycled Matter . | . . . . . . . Retrieved Matter . | . . . . . . . Retrieved Components 16 | . . . . 6 10 . Parts Scanalyzed . | . . . . . . . Part Schematics Acquired . | . . . . . . . Parts Damaged . | . . . . . . . Bothacking | -11 -10 -10 -10 -7 -5 -5 ------------ Run | Yrd Mat Min Sub Rec Fac Gar Used RIF Installer . | . . . . . . . Robots Hacked . | . . . . . . . Non-combat . | . . . . . . . Combat . | . . . . . . . Robot Hacks Applied . | . . . . . . . Relay Couplers Released . | . . . . . . . Fabnet Peak Effective % . | . . . . . . . Robots Rewired . | . . . . . . . Allies Hacked . | . . . . . . . Hacks Repelled . | . . . . . . . Allies | -11 -10 -10 -10 -7 -5 -5 -------- Run | Yrd Mat Min Sub Rec Fac Gar Total Allies 3 | . . 3 . . . . Largest Group 3 | . . 3 3 . . . Highest-Rated Group 40 | . . 40 40 . . . Highest-Rated Ally 16 | . . 16 16 . . . Total Orders . | . . . . . . . Ally Attacks 19 | . . . 19 . . . Total Damage 191 | . . . 191 . . . Kills 3 | . . . 3 . . . Allies Corrupted . | . . . . . . . Allies Melted . | . . . . . . . Intel | -11 -10 -10 -10 -7 -5 -5 ------- Run | Yrd Mat Min Sub Rec Fac Gar Active Infowar (turns) 381 | . 52 . . . 329 . Sensors 329 | . . . . . 329 . Seismic 52 | . 52 . . . . . Robot Analysis Total . | . . . . . . . Derelict Logs Recovered 1 | . . 1 . . . . Drone Launches . | . . . . . . . Drone Recoveries . | . . . . . . . Exploration | -11 -10 -10 -10 -7 -5 -5 ------------- Run | Yrd Mat Min Sub Rec Fac Gar Turns Passed 2903 | 87 751 91 375 720 852 27 Spaces Moved 1581 | 36 319 32 130 554 458 52 Core 179 | 3 . . . 6 118 52 Treads 467 | 33 319 32 68 15 . . Legs 534 | . . . . 368 166 . Wheels 319 | . . . 62 165 92 . Hover 23 | . . . . . 23 . Flight 59 | . . . . . 59 . Fastest Speed 35 | 50 160 240 130 100 35 50 Average Speed 141 | 150 183 240 187 111 139 50 Slowest Speed 240 | 160 240 240 240 160 240 50 Overloaded Moves . | . . . . . . . Propulsion Burnouts . | . . . . . . . Robots Hopped 8 | . . . . . 8 . Potential Cave-ins . | . . . . . . . Cave-ins Triggered . | . . . . . . . Exploration Rate (%) 28 | 4 57 13 10 81 14 20 Regions Visited 6 Branch Regions 3 Pre-discovered Areas 1 | . . 1 . . . . Known Exits Taken 1 | . . . . . 1 . Unknown Exits Taken 5 | 1 1 1 1 1 . . Scrap Searched . | . . . . . . . Spaces Dug . | . . . . . . . Terrain Destroyed 27 | . 5 . 14 . 8 . Melee . | . . . . . . . Projectile 3 | . . . . . 3 . AOE 24 | . 5 . 14 . 5 . Terrain Rammed . | . . . . . . . Walls Destroyed . | . . . . . . . Machines Disabled . | . . . . . . . Actions | -11 -10 -10 -10 -7 -5 -5 --------- Run | Yrd Mat Min Sub Rec Fac Gar Total 2025 | 54 436 47 205 637 593 53 Wait 197 | . 69 16 35 38 38 1 Move 1562 | 35 318 31 129 553 444 52 Hop 6 | . . . . . 6 . Pick Up 35 | 4 5 . 10 10 6 . Fast Attach 24 | 6 8 . . 1 9 . Attach 16 | . . . 3 4 9 . Detach 11 | . 2 . . 3 6 . Swap 4 | . 3 . . . 1 . Drop 19 | . 6 . . 7 6 . Fire 141 | 9 25 . 28 19 60 . Melee . | . . . . . . . Ram 7 | . . . . . 7 . Kick 3 | . . . . 2 1 . Crush . | . . . . . . . Escape Stasis . | . . . . . . . Rewire . | . . . . . . . Trap . | . . . . . . . Miscellaneous . | . . . . . . . Route ------- -11/Scrapyard -10/Materials (discovered 3 exits: [*Mat] / [*Min] / [*Sub]) -10/Mines -10/Subcaves (discovered 4 exits: [*Mat x2] / *Rec / [*Scr]) -7/Recycling -5/Factory -5/Garrison History --------- Turn | Location | Event 21 | -11/Scrapyard | Discovered new exit (range 16) 88 | -11/Scrapyard | Entered Materials 309 | -10/Materials | Build established: Mutant 498 | -10/Materials | Discovered new exit (range 13) 645 | -10/Materials | Discovered new exit (range 16) 800 | -10/Materials | Discovered new exit (range 7) 839 | -10/Materials | Entered Mines 844 | -10/Mines | Assisted by bots powering up and referring to "LRC-V3" 847 | -10/Mines | Met a Derelict bent on vengeance 913 | -10/Mines | Discovered new exit (range 5) 930 | -10/Mines | Entered Subcaves 930 | -10/Subcaves | Accompanied by 3 allies 931 | -10/Subcaves | Approached by a straggling Scientist 1026 | -10/Subcaves | Discovered new exit (range 14) 1029 | -10/Subcaves | Scientist uncovered a shortcut to Scraptown 1031 | -10/Subcaves | Discovered new exit (range 9) 1278 | -10/Subcaves | Discovered new exit (range 10) 1305 | -10/Subcaves | Entered Recycling 1488 | -7/Recycling | Scanned before Scraplab entrance 1506 | -7/Recycling | Entered Scraplab 1517 | -7/Recycling | Discovered new exit (range 2) 1530 | -7/Recycling | Angered Scraplab inhabitants 1530 | -7/Recycling | Found Prototype Device 1548 | -7/Recycling | Core integrity fell below 50% 1566 | -7/Recycling | Core integrity fell below 20% 1571 | -7/Recycling | Identified Scrap Engine 1594 | -7/Recycling | Lost 4 parts (1p1n2w) 1941 | -7/Recycling | Build established: Construct 2020 | -7/Recycling | Discovered new exit (range 6) 2025 | -7/Recycling | Entered Factory 2025 | -5/Factory | Evolved 10 slots: Power x1, Propulsion x2, Utility x5, Weapon x2 2358 | -5/Factory | Build established: Mutant 2710 | -5/Factory | Lost 12 parts (2p2n3u5w) 2794 | -5/Factory | Core integrity fell below 50% 2871 | -5/Factory | Core integrity fell below 20% 2877 | -5/Factory | Identified exit to Garrison 2877 | -5/Factory | Entered Garrison 2896 | -5/Garrison | Lost 7 parts (1n5u1w) 2904 | -5/Garrison | Destroyed by S-27 Virus with Autogun Last Messages --------------- ALERT: Potential suspicious activity detected, Programmers report to Factory Zone 2S. Power Amplifier destroyed. Acquired Imp. Melee Analysis Suite. ALERT: Security rotation in progress. K-01 Serf cleans the Assembly Bed. Connecting with Garrison Access... >>Unlock Access door unlocked. EXIT=UNLOCKED: GARRISON LOCATION=GARRISON GOAL=ESCAPE Connecting with Garrison Terminal... ALERT: Suspicious activity at Terminal G003. Transmitting hostile system tracking data. C-35 Carver knocked back. Knocked back. Garrison Door activated. System corrupted: Matter fused (-9). Mak. Microdissipator Network destroyed. Map ----- +----------------------------------------------------+ | | | | | | | | | | | | | | | | | | | | | | | | | | | | | | | | | | | | | | | ????????????????????????????????? | | ????????????????????????????????? | | ???????????????????????##?#####?? | | ???????????????????????#"# #"#?? | | ???????????????????????#" "#?? | | ???????????????????????#" "#?? | | ???????????????????????#"@ "#?? | | ???????????????????????#"# #"#?? | | ???????????????????????###cs#???? | | ????#????????????????????# #???? | | # ## #################### #???? | | #???? | | #???? | | # # ########### ######???? | | ###???# #?????????# #????????? | | #### #########?#####????????? | | #??????????????? | | #??????????????? | | #??????????????? | | #?#####????????? | | ###"T"#????????? | | "#????????? | | #######????????? | | #??????????????? | | #??????????????? | | #??????????????? | | #??????????????? | | #??????????????? | | #??????????????? | | #??????????????? | | ### #??????????? | +----------------------------------------------------+ Best States ------------- Heat Dissipation 59 Coolant Potential 80 Energy Generation 29 Energy Capacity 663 Matter Stores 300 Matter Capacity 300 Sight Range 16 Robot Scan Range 15 Terrain Scan Density 10 Power Amplification 20 Evasion (%) 63 Targeting Accuracy 5 Target Analysis 6 Core Analysis 6 Recoil Reduction 2 Salvage Targeting 4 Item Schematics ----------------- Hyb. Deuterium Engine | -7/Recycling | Hacked Robot Schematics ------------------ None Fabricated ------------ Nothing Repaired ---------- Nothing Studied --------- Missile Launcher | -5/Factory | Hacked Alien Tech Used ----------------- None Achievements -------------- Not So Scrappy Scrappetite Challenges ------------ None Game ------ Seed ExpertArcBox Manual? 0 Play Time 00:38:25 Cumulative 363.6 hours Start 2025.12.02 @ 16:22:05 End 2025.12.02 @ 17:00:09 Sessions 1 Manual Loads 0 Difficulty Rogue Special Mode None Game No. 360 Rogue 360 Adventurer 0 Explorer 0 Win Type - Total 26 Types 19/0/4/3/0/0/0/0/0/0 Lore% 76 Gallery% 76 Achievement% 51 Wizard Run 0 Options --------- Layout 0 ASCII 0 Keyboard 1 Movement Numpad Keybinds 0 Fullscreen 1 Font 18/SmallcapsGlow Map View 76x50 Zoom Use 0% Tactical HUD 1 Map Filters NONE Filters NONE Steam 1 RUN: 356895c6-8da2-4b90-90e7-f84bd0887ab1